lending/lending_fUSD_20260206
["ID","MTS","AMOUNT","RATE_DAILY","PERIOD"]
[404648012,1770377446477,-206.90235756,0.00043287,120]
[404648013,1770377446486,-542.39728637,0.00043287,120]
[404648014,1770377446496,-500.0,0.00043287,120]
[404648015,1770377446505,-452.07819674,0.00043287,120]
[404648016,1770377446515,-500.0,0.00043287,120]
[404648017,1770377446524,-500.0,0.00043287,120]
[404648018,1770377446534,-540.19557012,0.00043287,120]
[404648019,1770377446545,-578.87034341,0.00043287,120]
[404648020,1770377446556,-500.0,0.00043287,120]
[404648021,1770377446567,-500.0,0.00043287,120]
[404648022,1770377446579,-500.0,0.00043287,120]
[404648023,1770377446590,-500.0,0.00043287,120]
[404648024,1770377446600,-500.0,0.00043287,120]
[404648025,1770377446611,-500.0,0.00043287,120]
[404648026,1770377446622,-500.0,0.00043287,120]
[404648027,1770377446632,-500.0,0.00043287,120]
[404648028,1770377446643,-500.0,0.00043287,120]
[404648029,1770377446654,-500.0,0.00043287,120]
[404648030,1770377446666,-500.0,0.00043287,120]
[404648031,1770377446676,-609.25615897,0.00043287,120]
[404648032,1770377446687,-1800.0,0.000433,15]
[404648033,1770377446698,-2000.0,0.000433,2]
[404648034,1770377446708,-1210.83529054,0.00043377,2]
[404648035,1770377446718,-410.82537051,0.00043392,11]
[404648036,1770377446729,-300.0,0.000434,15]
[404648037,1770377446739,-365.09109198,0.0004346,120]
[404648038,1770377446749,-69124.0,0.00043461,30]
[404648039,1770377446759,-410.82537051,0.00043488,11]
[404648040,1770377446770,-210.24315935,0.00043492,18]
[404648041,1770377446779,-500.0,0.00043499,120]
[404648042,1770377446789,-500.0,0.00043499,120]
[404648043,1770377446800,-300.0,0.000435,15]
[404648044,1770377446810,-200.0,0.00043517,5]
[404648045,1770377446821,-1282.57939127,0.0004356,10]
[404648046,1770377446831,-600.0,0.00043572,60]
[404648047,1770377446842,-1000.0,0.00043572,60]
[404648048,1770377446852,-500.0,0.00043572,60]
[404648049,1770377446862,-200.0,0.00043574,120]
[404648050,1770377446872,-410.82537051,0.00043583,12]
[404648051,1770377446883,-300.0,0.000436,15]
[404648052,1770377446892,-6582.0,0.00043647,2]
[404648053,1770377446904,-1298.49268606,0.00043657,120]
[404648054,1770377446914,-150.0,0.00043672,60]
[404648055,1770377446924,-150.0,0.00043672,60]
[404648056,1770377446934,-500.0,0.00043672,2]
[404648057,1770377446943,-500.0,0.00043672,60]
[404648058,1770377446953,-410.82537051,0.00043679,12]
[404648059,1770377446964,-300.0,0.000437,15]
[404648060,1770377446974,-10450.70688158,0.000437,2]
[404648061,1770377447017,-5783.07047187,0.00033078,2]
[404648062,1770377447027,-19929.96311842,0.000437,2]
[404648063,1770377447037,-150.0,0.00043727,60]
[404648064,1770377447047,-500.0,0.00043727,2]
[404648065,1770377447060,-500.0,0.00043727,60]
[404648066,1770377447070,-410.82537051,0.00043774,13]
[404648067,1770377447080,-150.0,0.00043782,60]
[404648068,1770377447091,-500.0,0.00043782,2]
[404648069,1770377447103,-500.0,0.00043782,60]
[404648070,1770377447113,-990.0,0.000438,15]
[404648071,1770377447123,-1999.0,0.00043835,120]
[404648072,1770377447134,-1537.0,0.00043836,30]
[404648073,1770377447144,-150.0,0.00043836,60]
[404648074,1770377447154,-500.0,0.00043836,2]
[404648075,1770377447164,-592.0,0.00043836,60]
[404648076,1770377447174,-408.97859664,0.00043845,120]
[404648077,1770377447185,-878.58960646,0.00043845,120]
[404648078,1770377447195,-410.82537051,0.0004387,13]
[404648079,1770377447205,-272.54644821,0.00043891,60]
[404648080,1770377447215,-500.0,0.00043891,2]
[404648081,1770377447226,-1879.23,0.00043899,120]
[404648082,1770377447236,-1879.23,0.00043899,120]
[404648083,1770377447247,-1879.23,0.00043899,120]
[404648084,1770377447257,-1879.23,0.00043899,120]
[404648085,1770377447267,-1879.43287994,0.00043899,120]
[404648086,1770377447277,-2000.0,0.00043899,3]
[404648087,1770377447287,-53796.29936612,0.000439,30]
[404648088,1770377447300,-3547.43151558,0.000439,30]
[404648089,1770377447312,-7576.63853647,0.000439,30]
[404648101,1770377522583,300.0,0.00017201,30]
[404648196,1770377570785,238.52614286,0.00044061,120]
[404648206,1770377657269,223.458272,0.00010985,2]
[404648207,1770377744538,150.0,0.00022108,120]
[404648208,1770377760111,1547.5488189,0.00010992,2]
[404648209,1770377807221,838.17387825,0.00010999,2]
[404648210,1770377807393,3497.76586552,0.0004409,30]
[404648212,1770377839959,-200.0,0.00010999,2]
[404648213,1770377842000,-200.0,0.00010999,2]
[404648214,1770377843992,-200.0,0.00010999,2]
[404648215,1770377845124,-200.0,0.00010999,2]
[404648216,1770377896896,160.0,0.00035616,120]
[404648217,1770377903118,250.45215128,0.00010899,2]
[404648219,1770377932402,1710.69885641,0.00010899,2]
[404648221,1770378017064,1841.0,0.00044085,120]
[404648222,1770378040757,2057.74893856,0.000109,2]
[404648223,1770378052607,1140.46590426,0.00010899,2]
[404648224,1770378092576,1580.776,0.00010757,2]
[404648225,1770378092614,161.263,0.00010757,2]
[404648226,1770378174800,760.31060284,0.00010899,2]
[404648227,1770378212917,390.0,0.00044087,30]
[404648228,1770378273697,-500.0,0.0001095,2]
[404648229,1770378273725,-150.0,0.0001095,2]
[404648230,1770378273755,-300.0,0.00010954,2]
[404648231,1770378273783,-250.0,0.00010958,2]
[404648232,1770378273812,-183.75609216,0.00010967,2]
[404648233,1770378273840,-250.0,0.00010969,2]
[404648234,1770378273869,-1200.0,0.00010975,2]
[404648235,1770378273899,-150.0,0.00010975,2]
[404648236,1770378273928,-500.0,0.00010976,2]
[404648237,1770378273957,-197.52757993,0.00010976,2]
[404648238,1770378273985,-236.93276471,0.00010976,2]
[404648239,1770378274014,-473.03750532,0.00010976,2]
[404648240,1770378274043,-221.28848559,0.00010976,2]
[404648241,1770378274076,-274.92514458,0.00010976,2]
[404648242,1770378276570,-225.07485542,0.00010976,2]
[404648243,1770378276604,-500.0,0.00010976,2]
[404648244,1770378276639,-500.0,0.00010976,2]
[404648245,1770378276673,-500.0,0.00010976,2]
[404648246,1770378276706,-500.0,0.00010976,2]
[404648247,1770378276739,-500.0,0.00010976,2]
[404648248,1770378276772,-500.0,0.00010976,2]
[404648249,1770378276806,-500.0,0.00010976,2]
[404648250,1770378276840,-495.40163709,0.00010976,2]
[404648251,1770378276872,-500.0,0.00010976,2]
[404648252,1770378276904,-59.05701498,0.00010976,2]
[404648253,1770378279666,-440.94298502,0.00010976,2]
[404648254,1770378279704,-500.0,0.00010976,2]
[404648255,1770378279739,-322.16172308,0.00010976,2]
[404648256,1770378279774,-500.0,0.00010976,2]
[404648257,1770378279958,-3550.35009215,0.00010977,2]
[404648258,1770378285765,-10000.01,0.00010977,2]
[404648259,1770378294964,512.67662473,0.00010899,2]
[404648260,1770378297292,20018.0,0.00044087,30]
[404648261,1770378322517,1800.53032124,0.000109,2]
[404648262,1770378359971,2397.2160604,0.00044087,120]
[404648264,1770378399151,-150.0,0.0001095,2]
[404648265,1770378399173,-94.36200802,0.0001095,2]
[404648266,1770378415195,969.97172753,0.00010899,2]
[404648267,1770378445043,159.19811163,0.00010899,2]
[404648274,1770378511312,5000.01,0.00010877,2]
[404648275,1770378511337,5000.01,0.00010877,2]
[404648276,1770378511367,5000.01,0.00010877,2]
[404648277,1770378511393,5000.01,0.00010877,2]
[404648278,1770378511417,5000.01,0.00010877,2]
[404648279,1770378511442,5000.01,0.00010877,2]
[404648280,1770378511468,5000.01,0.00010877,2]
[404648281,1770378511492,5000.01,0.00010877,2]
[404648282,1770378511519,5000.01,0.00010877,2]
[404648283,1770378511542,5000.01,0.00010877,2]
[404648284,1770378518902,-8040.28156713,0.00010877,2]
[404648285,1770378519081,-10000.01,0.00010877,2]
[404648286,1770378519198,-10000.01,0.00010877,2]
[404648287,1770378519313,-10000.01,0.00010877,2]
[404648288,1770378519478,-10000.01,0.00010877,2]
[404648289,1770378519663,-10000.01,0.00010877,2]
[404648290,1770378519768,-10000.01,0.00010877,2]
[404648291,1770378530904,-10000.01,0.00010877,2]
[404648292,1770378531049,-10000.01,0.00010877,2]
[404648293,1770378531191,-10000.01,0.00010877,2]
[404648294,1770378531322,-10000.01,0.00010877,2]
[404648295,1770378531472,-10000.01,0.00010877,2]
[404648296,1770378531605,-10000.01,0.00010877,2]
[404648297,1770378531717,-10000.01,0.00010877,2]
[404648298,1770378533446,1000.0,0.00034,120]
[404648299,1770378537033,-646.64781836,0.0001085,2]
[404648300,1770378537405,-2842.10056338,0.00010877,2]
[404648301,1770378540052,-5000.01,0.00010877,2]
[404648302,1770378540160,-5000.01,0.00010877,2]
[404648303,1770378540294,-5000.01,0.00010877,2]
[404648304,1770378549559,3000.0,0.00035,120]
[404648305,1770378563676,150.0,0.00013999,30]
[404648306,1770378566562,5000.0,0.000354,120]
[404648310,1770378632019,-4790.0,0.00010849,2]
[404648311,1770378632029,-3458.05779065,0.0001085,2]
[404648312,1770378632039,-1200.0,0.00010876,2]
[404648313,1770378632048,-36959.44099427,0.00010877,2]
[404648314,1770378632125,-229081.2198809,0.00010877,2]
[404648315,1770378632139,-42428.98597043,0.00010877,2]
[404648316,1770378632150,-54089.61304969,0.00010877,2]
[404648317,1770378632161,-79232.40748963,0.00010877,2]
[404648318,1770378632178,-441.00787928,0.00010877,2]
[404648322,1770378638048,-19919.0234628,0.00010877,2]
[404648323,1770378638208,-655.5,0.00010877,2]
[404648325,1770378638220,-2274.60831705,0.00010877,2]
[404648495,1770378640086,-3434.8629883,0.00010877,2]
[404648498,1770378640097,-365.81717986,0.00010877,2]
[404648500,1770378640108,-332.155,0.00010877,2]
[404648517,1770378640259,-14536.26119868,0.00010877,2]
[404648529,1770378640366,-2810366.4544586,0.00010877,2]
[404648531,1770378640378,-1923.03816373,0.000109,2]
[404648533,1770378640391,-150.0,0.0001095,2]
[404648535,1770378640400,-150.0,0.0001095,2]
[404648537,1770378640410,-150.0,0.00010969,2]
[404648539,1770378640420,-151.0,0.0001097,2]
[404648541,1770378640429,-151.0,0.0001097,2]
[404648543,1770378640438,-151.0,0.0001097,2]
[404648545,1770378640449,-151.0,0.0001097,2]
[404648547,1770378640458,-151.0,0.0001097,2]
[404648571,1770378640674,-151.0,0.0001097,2]
[404648574,1770378640684,-151.0,0.0001097,2]
[404648576,1770378640694,-151.0,0.0001097,2]
[404648577,1770378640703,-151.0,0.0001097,2]
[404648579,1770378640712,-151.0,0.0001097,2]
[404648581,1770378640721,-151.0,0.0001097,2]
[404648583,1770378640730,-151.0,0.0001097,2]
[404648585,1770378640739,-151.0,0.0001097,2]
[404648587,1770378640748,-151.0,0.0001097,2]
[404648589,1770378640757,-151.0,0.0001097,2]
[404648590,1770378640766,-151.0,0.0001097,2]
[404648592,1770378640775,-151.0,0.0001097,2]
[404648595,1770378640786,-151.0,0.0001097,2]
[404648597,1770378640795,-151.0,0.0001097,2]
[404648598,1770378640804,-151.0,0.0001097,2]
[404648600,1770378640814,-165.85293529,0.00010976,2]
[404648603,1770378640823,-500.0,0.00010976,2]
[404648604,1770378640832,-500.0,0.00010976,2]
[404648606,1770378640842,-500.0,0.00010976,2]
[404648608,1770378640851,-500.0,0.00010976,2]
[404648610,1770378640860,-500.0,0.00010976,2]
[404648612,1770378640869,-181.12625372,0.00010976,2]
[404648614,1770378640879,-500.0,0.00010976,2]
[404648616,1770378640890,-500.0,0.00010976,2]
[404648618,1770378640900,-500.0,0.00010976,2]
[404648621,1770378640910,-500.0,0.00010976,2]
[404648622,1770378640920,-500.0,0.00010976,2]
[404648625,1770378640929,-500.0,0.00010976,2]
[404648626,1770378640939,-500.0,0.00010976,2]
[404648628,1770378640948,-639.5163456,0.00010976,2]
[404648630,1770378640956,-500.0,0.00010976,2]
[404648632,1770378640966,-500.0,0.00010976,2]
[404648633,1770378640975,-500.0,0.00010976,2]
[404648634,1770378640984,-500.0,0.00010976,2]
[404648635,1770378640994,-500.0,0.00010976,2]
[404648636,1770378641003,-500.0,0.00010976,2]
[404648637,1770378641012,-500.0,0.00010976,2]
[404648638,1770378641022,-500.0,0.00010976,2]
[404648639,1770378641031,-500.0,0.00010976,2]
[404648640,1770378641040,-500.0,0.00010976,2]
[404648641,1770378641049,-500.0,0.00010976,2]
[404648642,1770378641058,-500.0,0.00010976,2]
[404648643,1770378641068,-500.0,0.00010976,2]
[404648645,1770378641077,-500.0,0.00010976,2]
[404648647,1770378641086,-500.0,0.00010976,2]
[404648649,1770378641096,-500.0,0.00010976,2]
[404648651,1770378641105,-500.0,0.00010976,2]
[404648652,1770378641114,-500.0,0.00010976,2]
[404648653,1770378641124,-500.0,0.00010976,2]
[404648654,1770378641133,-500.0,0.00010976,2]
[404648655,1770378641144,-500.0,0.00010976,2]
[404648656,1770378641154,-500.0,0.00010976,2]
[404648657,1770378641163,-500.0,0.00010976,2]
[404648658,1770378641173,-500.0,0.00010976,2]
[404648659,1770378641182,-500.0,0.00010976,2]
[404648660,1770378641192,-500.0,0.00010976,2]
[404648661,1770378641201,-500.0,0.00010976,2]
[404648662,1770378641211,-500.0,0.00010976,2]
[404648663,1770378641222,-500.0,0.00010976,2]
[404648664,1770378641231,-250.0,0.00010976,2]
[404648665,1770378641242,-205.41268526,0.00010999,2]
[404648666,1770378641251,-207.03329688,0.00011005,2]
[404648667,1770378641260,-23262.02162514,0.00011099,2]
[404648668,1770378641270,-999.99,0.00011099,2]
[404648669,1770378641279,-4779.14242252,0.00011099,2]
[404648670,1770378641288,-1395.22257484,0.00011149,2]
[404648671,1770378641298,-168.19452751,0.00011192,2]
[404648672,1770378641308,-9999.99,0.00011192,2]
[404648673,1770378641318,-7202.12,0.00011221,2]
[404648674,1770378641328,-299.99,0.00011221,2]
[404648675,1770378641338,-150.99,0.00011221,2]
[404648676,1770378641347,-300.0,0.00011934,2]
[404648677,1770378641358,-1680.0,0.00011964,2]
[404648678,1770378641372,-500.0,0.00012011,2]
[404648679,1770378641382,-255.0,0.00012011,2]
[404648680,1770378641393,-250.0,0.00012045,2]
[404648681,1770378641402,-300.0,0.00012045,2]
[404648682,1770378641412,-500.0,0.00012045,2]
[404648683,1770378641422,-241.00287784,0.00012045,2]
[404648684,1770378641431,-250.0,0.00012074,2]
[404648685,1770378641443,-500.0,0.00012285,2]
[404648686,1770378641452,-1395.22257484,0.00012756,2]
[404648687,1770378641464,-433.0,0.00013152,2]
[404648688,1770378641475,-2351.0,0.0001316,2]
[404648689,1770378641487,-6209.09954861,0.00014,2]
[404648690,1770378641497,-879.22,0.00014345,2]
[404648691,1770378641508,-1395.22257484,0.00014362,2]
[404648692,1770378641519,-507.0,0.00014476,2]
[404648693,1770378641531,-4779.14242247,0.00014573,2]
[404648694,1770378641540,-23262.0216251,0.00014575,2]
[404648695,1770378641549,-209.57,0.00015013,2]
[404648696,1770378641558,-150.0,0.00015322,2]
[404648697,1770378641567,-1923.03816371,0.00015584,2]
[404648698,1770378641579,-1395.22257484,0.00015968,2]
[404648699,1770378641590,-150.0,0.00015999,2]
[404648700,1770378641602,-500.0,0.00016473,2]
[404648701,1770378641613,-500.0,0.00016473,2]
[404648702,1770378641622,-361.88,0.00016531,2]
[404648703,1770378641635,-571.28,0.00016673,2]
[404648704,1770378641646,-150.0,0.00016999,2]
[404648705,1770378641656,-1000.0,0.00017021,2]
[404648706,1770378641667,-1000.0,0.00017021,2]
[404648707,1770378641676,-1697.75,0.000173,2]
[404648708,1770378641688,-1500.0,0.00017568,2]
[404648709,1770378641698,-1500.0,0.00017568,2]
[404648710,1770378641707,-1395.22257484,0.00017575,2]
[404648711,1770378641718,-155.59252251,0.00017791,2]
[404648712,1770378641737,-500.0,0.00017973,2]
[404648713,1770378641752,-500.0,0.00017973,2]
[404648714,1770378641771,-500.0,0.00017973,2]
[404648715,1770378641782,-500.0,0.00017973,2]
[404648716,1770378641793,-500.0,0.00017973,2]
[404648717,1770378641803,-500.0,0.00017973,2]
[404648718,1770378641814,-501.94112039,0.00017973,2]
[404648719,1770378641827,-160.38138244,0.00017973,2]
[404648720,1770378641836,-500.0,0.00017973,2]
[404648721,1770378641846,-500.0,0.00017973,2]
[404648722,1770378641857,-500.0,0.00017973,2]
[404648723,1770378641868,-500.0,0.00017973,2]
[404648724,1770378641878,-307.65242929,0.00017973,2]
[404648725,1770378641889,-500.0,0.00017973,2]
[404648726,1770378641900,-500.0,0.00017973,2]
[404648727,1770378641911,-500.0,0.00017973,2]
[404648728,1770378641921,-500.0,0.00017973,2]
[404648729,1770378641933,-394.85489861,0.00017973,2]
[404648730,1770378641942,-500.0,0.00017973,2]
[404648731,1770378641951,-276.31975293,0.00017973,2]
[404648732,1770378641961,-162.09631962,0.00017973,2]
[404648733,1770378641971,-500.0,0.00017973,2]
[404648734,1770378641980,-161.65464171,0.00017973,2]
[404648735,1770378641989,-500.0,0.00017973,2]
[404648736,1770378641998,-500.0,0.00017973,2]
[404648737,1770378642008,-500.0,0.00017973,2]
[404648738,1770378642017,-500.0,0.00017973,2]
[404648739,1770378642027,-500.0,0.00017973,2]
[404648740,1770378642036,-500.0,0.00017973,2]
[404648741,1770378642045,-500.0,0.00017973,2]
[404648742,1770378642055,-182.684782,0.00017973,2]
[404648743,1770378642064,-265.91534322,0.00017973,2]
[404648744,1770378642073,-500.0,0.00017973,2]
[404648745,1770378642083,-500.0,0.00017973,2]
[404648746,1770378642092,-500.0,0.00017973,2]
[404648747,1770378642101,-500.0,0.00017973,2]
[404648748,1770378642111,-500.0,0.00017973,2]
[404648749,1770378642120,-208.57318794,0.00017973,2]
[404648750,1770378642130,-500.0,0.00017973,2]
[404648751,1770378642141,-500.0,0.00017973,2]
[404648752,1770378642150,-500.0,0.00017973,2]
[404648753,1770378642159,-500.0,0.00017973,2]
[404648754,1770378642169,-333.90054396,0.00017973,2]
[404648755,1770378642179,-500.0,0.00017973,2]
[404648756,1770378642188,-232.48282443,0.00017973,2]
[404648757,1770378642198,-586.89023392,0.00017973,2]
[404648758,1770378642208,-500.0,0.00017973,2]
[404648759,1770378642225,-433.53666957,0.00017973,2]
[404648760,1770378642236,-500.0,0.00017973,2]
[404648761,1770378642247,-500.0,0.00017973,2]
[404648762,1770378642259,-500.0,0.00017973,2]
[404648763,1770378642269,-614.17494655,0.00017973,2]
[404648764,1770378642279,-500.0,0.00017973,2]
[404648765,1770378642288,-500.0,0.00017973,2]
[404648766,1770378642298,-500.0,0.00017973,2]
[404648767,1770378642309,-382.63613861,0.00017973,2]
[404648768,1770378642318,-500.0,0.00017973,2]
[404648769,1770378642330,-393.28026372,0.00017973,2]
[404648770,1770378642339,-500.0,0.00017973,2]
[404648771,1770378642351,-500.0,0.00017973,2]
[404648772,1770378642361,-500.0,0.00017973,2]
[404648773,1770378642376,-500.0,0.00017973,2]
[404648774,1770378642395,-500.0,0.00017973,2]
[404648775,1770378642413,-500.93151703,0.00017973,2]
[404648776,1770378642423,-500.8383319,0.00017973,2]
[404648777,1770378642433,-500.0,0.00017973,2]
[404648778,1770378642442,-500.0,0.00017973,2]
[404648779,1770378642452,-501.17265493,0.00017973,2]
[404648780,1770378642461,-500.0,0.00017973,2]
[404648781,1770378642470,-698.83,0.00017973,2]
[404648782,1770378642479,-150.0,0.00017999,2]
[404648783,1770378642489,-500.0,0.00018116,2]
[404648784,1770378642498,-500.0,0.00018116,2]
[404648785,1770378642507,-4779.14242247,0.00018246,2]
[404648786,1770378642516,-698.83,0.00018247,2]
[404648787,1770378642525,-23262.0216251,0.00018252,2]
[404648788,1770378642535,-698.83,0.00018521,2]
[404648789,1770378642544,-698.83,0.00018795,2]
[404648790,1770378642553,-150.0,0.00018999,2]
[404648791,1770378642562,-698.83,0.00019068,2]
[404648792,1770378642571,-200.0,0.00019082,2]
[404648793,1770378642580,-1395.22257484,0.00019181,2]
[404648794,1770378642590,-698.84,0.00019342,2]
[404648795,1770378642599,-168.19452748,0.00019384,2]
[404648796,1770378642608,-324.99,0.00019386,2]
[404648797,1770378642617,-1923.03816371,0.00020318,2]
[404648798,1770378642626,-155.59252251,0.00020756,2]
[404648799,1770378642635,-1395.22257484,0.00020788,2]
[404648800,1770378642646,-4779.14242247,0.0002192,2]
[404648801,1770378642655,-23262.0216251,0.00021928,2]
[404648802,1770378642664,-27342.6,0.00022,2]
[404648803,1770378642673,-150.0,0.00022108,2]
[404648804,1770378642683,-339.04,0.000222,7]
[404648805,1770378642692,-1395.22257484,0.00022394,2]
[404648806,1770378642701,-160.0,0.00023,2]
[404648807,1770378642710,-361.88,0.00023143,2]
[404648808,1770378642720,-183.03,0.00023631,2]
[404648809,1770378642729,-155.59252251,0.00023721,2]
[404648810,1770378642739,-1395.22257484,0.00024,2]
[404648811,1770378642747,-183.03,0.0002434,2]
[404648812,1770378642757,-1000.0,0.00024658,2]
[404648813,1770378642766,-1923.03816371,0.00025052,2]
[404648815,1770378642785,-183.03,0.00025071,2]
[404648816,1770378642795,-4779.14242247,0.00025593,2]
[404648817,1770378642804,-23262.0216251,0.00025605,2]
[404648818,1770378642813,-1395.22257484,0.00025607,2]
[404648820,1770378642822,-3483.0,0.00025924,2]
[404648822,1770378642831,-1335.0,0.00025924,2]
[404648825,1770378642840,-6582.0,0.00025924,2]
[404648828,1770378642849,-150.0,0.00025999,2]
[404648831,1770378642859,-155.59252251,0.00026686,2]
[404648834,1770378642868,-1395.22257484,0.00027213,2]
[404648837,1770378642879,-27342.6,0.000273,2]
[404648839,1770378642888,-150.0,0.00027369,2]
[404648841,1770378642898,-757.75,0.00027397,30]
[404648842,1770378642908,-168.19452748,0.00027577,2]
[404648843,1770378642917,-1395.22257484,0.00028819,2]
[404648844,1770378642926,-3483.0,0.00028924,2]
[404648845,1770378642936,-6582.0,0.00028924,2]
[404648846,1770378642945,-339.04,0.00029,7]
[404648847,1770378642955,-4779.14242247,0.00029267,2]
[404648848,1770378642964,-23262.0216251,0.00029281,2]
[404648849,1770378642974,-1923.03816371,0.00029785,2]
[404648850,1770378642984,-1395.22257484,0.00030426,2]
[404648851,1770378642994,-3478.0,0.00031924,2]
[404648852,1770378643004,-6582.0,0.00031924,2]
[404648853,1770378643013,-1395.22257484,0.00032032,2]
[404648854,1770378643023,-757.75,0.00032232,30]
[404648855,1770378643033,-4779.14242247,0.0003294,2]
[404648856,1770378643043,-300.0,0.00032957,10]
[404648857,1770378643052,-23262.0216251,0.00032958,2]
[404648858,1770378643063,-150.0,0.00032999,2]
[404648859,1770378643074,-320.69,0.00033,14]
[404648860,1770378643084,-1292.78,0.00033,2]
[404648861,1770378643094,-1395.22257484,0.00033638,2]
[404648862,1770378643104,-314.8,0.000338,14]
[404648863,1770378643114,-1923.03816371,0.00034519,2]
[404648864,1770378643124,-6582.0,0.00034924,2]
[404648865,1770378643134,-300.0,0.00034999,10]
[404648866,1770378643148,-300.0,0.00034999,10]
[404648867,1770378643157,-27342.6,0.00035,2]
[404648868,1770378643167,-150.0,0.00035,2]
[404648869,1770378643177,-150.0,0.00035152,60]
[404648870,1770378643186,-153.044089,0.00035152,60]
[404648871,1770378643196,-156.088178,0.00035152,60]
[404648872,1770378643207,-159.132267,0.00035152,60]
[404648873,1770378643217,-162.176356,0.00035152,60]
[404648874,1770378643227,-165.220445,0.00035152,60]
[404648875,1770378643237,-168.264535,0.00035152,60]
[404648876,1770378643248,-171.308624,0.00035152,60]
[404648877,1770378643258,-174.352713,0.00035152,60]
[404648878,1770378643269,-177.396802,0.00035152,60]
[404648879,1770378643279,-1395.22257484,0.00035245,2]
[404648880,1770378643289,-152.0,0.00035344,3]
[404648881,1770378643299,-1580.776,0.00035568,42]
[404648882,1770378643310,-168.19452748,0.00035769,8]
[404648883,1770378643320,-2000.0,0.000359,2]
[404648884,1770378643334,-1000.0,0.00036,120]
[404648885,1770378643347,-4779.14242247,0.00036614,2]
[404648886,1770378643357,-300.0,0.00036633,10]
[404648887,1770378643369,-23262.0216251,0.00036634,2]
[404648888,1770378643382,-1395.22257484,0.00036851,2]
[404648889,1770378643392,-757.75,0.00037067,120]
[404648890,1770378643402,-195.58902898,0.000372,120]
[404648891,1770378643412,-320.69,0.000377,14]
[404648892,1770378643422,-1292.78,0.000377,2]
[404648893,1770378643433,-6582.0,0.00037924,2]
[404648894,1770378643444,-1000.0,0.00038,120]
[404648895,1770378643457,-204.69,0.00038011,14]
[404648896,1770378643467,-1395.22257484,0.00038457,2]
[404648897,1770378643477,-500.0,0.00039,120]
[404648898,1770378643488,-2000.0,0.000396,2]
[404648899,1770378643499,-1555.09520892,0.0003967,2]
[404648900,1770378643510,-377.31136206,0.0003967,2]
[404648901,1770378643521,-5800.0,0.00039683,14]
[404648902,1770378643536,-5800.0,0.00039691,14]
[404648903,1770378643546,-300.0,0.00039699,10]
[404648904,1770378643556,-5800.0,0.000397,14]
[404648905,1770378643566,-27342.6,0.000397,2]
[404648906,1770378643576,-5800.0,0.00039708,14]
[404648907,1770378643586,-548.0,0.000399,5]
[404648908,1770378643596,-500.0,0.0004,120]
[404648909,1770378643607,-1395.22257484,0.00040064,2]
[404648910,1770378643618,-1000.0,0.00040259,14]
[404648911,1770378643629,-4779.14242247,0.00040287,15]
[404648912,1770378643640,-23262.0216251,0.00040311,15]
[404648913,1770378643650,-300.0,0.00040409,10]
[404648914,1770378643660,-1000.0,0.0004041,2]
[404648915,1770378643671,-19106.67,0.0004041,2]
[404648916,1770378643680,-5494.783,0.00040924,2]
[404648917,1770378643689,-500.0,0.00041,120]
[404648919,1770378643699,-300.0,0.00041068,22]
[404648920,1770378643708,-510.0,0.00041087,10]
[404648922,1770378643718,-320.69,0.000411,14]
[404648923,1770378643731,-1292.78,0.000411,30]
[404648924,1770378643741,-3820.18649915,0.0004123,15]